bitfinex/quotes_SOLUSD_20241117
["timestamp","ask_amount","ask_price","bid_price","bid_amount"]
[1731856822855,23.99604862,233.42,233.32,11.91267136]
[1731856823148,28.28014862,233.42,233.32,11.91267136]
[1731856823348,11.91267136,233.41,233.32,11.91267136]
[1731856823656,23.902374,233.38,233.32,11.91267136]
[1731856825043,22.2062,233.39,233.35,11.91267136]
[1731856825435,0.09367462,233.42,233.35,11.91267136]
[1731856825436,0.12549,233.42,233.35,11.91267136]
[1731856825850,0.09367462,233.41,233.35,11.91267136]
[1731856826154,0.21916462,233.41,233.35,11.91267136]
[1731856826548,22.2062,233.43,233.35,11.91267136]
[1731856826760,22.2062,233.43,233.37,11.91267136]
[1731856827045,22.2062,233.43,233.39,11.91267136]
[1731856828930,0.09367462,233.42,233.37,11.91267136]
[1731856829245,24.12153862,233.42,233.33,11.91267136]
[1731856829445,24.12153862,233.42,233.35,11.91267136]
[1731856832461,28.40563862,233.42,233.35,11.91267136]
[1731856833045,28.40563862,233.42,233.33,11.91267136]
[1731856833241,23.99604862,233.4,233.33,11.91267136]
[1731856833654,0.21916462,233.4,233.33,11.91267136]
[1731856835832,0.21916462,233.38,233.24,15.0462]
[1731856836034,0.21916462,233.38,233.3,11.91267136]
[1731856836836,0.12549,233.37,233.3,11.91267136]
[1731856837148,23.902374,233.4,233.32,11.91267136]
[1731856837547,23.902374,233.4,233.34,11.91267136]
[1731856837748,0.12549,233.4,233.34,11.91267136]
[1731856839065,23.902374,233.4,233.34,11.91267136]
[1731856839745,23.902374,233.4,233.32,11.91267136]
[1731856840141,23.902374,233.4,233.25,20.0]
[1731856840142,23.902374,233.4,233.34,11.91267136]
[1731856840457,0.12549,233.4,233.34,11.91267136]
[1731856840667,23.902374,233.4,233.34,11.91267136]
[1731856842044,23.902374,233.4,233.32,11.91267136]
[1731856842252,12.13183598,233.39,233.3,11.91267136]
[1731856842451,0.12549,233.34,233.23,13.3932544]
[1731856842657,23.902374,233.34,233.26,11.91267136]
[1731856843744,23.902374,233.36,233.3,11.91267136]
[1731856843944,0.12549,233.37,233.3,11.91267136]
[1731856844161,0.21916462,233.37,233.3,11.91267136]
[1731856845165,23.776884,233.36,233.28,11.91267136]
[1731856845543,23.776884,233.34,233.26,11.91267136]
[1731856845949,0.12549,233.33,233.26,11.91267136]
[1731856846665,0.09367462,233.32,233.24,11.91267136]
[1731856846965,0.12549,233.31,233.24,11.91267136]
[1731856847263,23.776884,233.3,233.22,11.91267136]
[1731856847741,0.34465462,233.29,233.22,11.91267136]
[1731856848064,23.776884,233.3,233.22,11.91267136]
[1731856848365,23.776884,233.3,233.24,11.91267136]
[1731856849052,0.12549,233.3,233.24,11.91267136]
[1731856849256,0.21916462,233.31,233.24,11.91267136]
[1731856849659,0.21916462,233.31,233.19,20.0]
[1731856849660,0.12549,233.31,233.26,11.91267136]
[1731856849955,6.3511,233.33,233.28,11.91267136]
[1731856853769,6.3511,233.33,233.26,11.91267136]
[1731856853964,6.3511,233.33,233.2,13.3932544]
[1731856853965,37.86777136,233.41,233.32,11.91267136]
[1731856854468,0.09367462,233.4,233.33,7.61573328]
[1731856855144,24.12153862,233.4,233.33,7.61573328]
[1731856855348,28.40603862,233.4,233.33,7.61573328]
[1731856856349,28.40603862,233.4,233.33,11.89960204]
[1731856856954,24.12153862,233.4,233.33,11.89960204]
[1731856858170,21.6707,233.41,233.37,11.89960204]
[1731856858368,26.7816,233.46,233.37,11.89960204]
[1731856858681,22.4981,233.46,233.39,11.89960204]
[1731856858974,0.09367462,233.45,233.39,11.89960204]
[1731856859375,0.09367462,233.45,233.41,11.89960204]
[1731856860562,23.99604862,233.45,233.41,11.89960204]
[1731856860755,22.4981,233.46,233.41,11.89960204]
[1731856860958,11.89960204,233.5,233.41,11.89960204]
[1731856861159,11.89960204,233.5,233.32,13.3932544]
[1731856861160,0.09367462,233.49,233.43,11.89960204]
[1731856862073,24.12153862,233.48,233.4,11.89960204]
[1731856862774,28.40463862,233.48,233.4,11.89960204]
[1731856863974,28.40463862,233.48,233.31,16.7835852]
[1731856863975,23.902374,233.44,233.37,11.89960204]
[1731856864271,0.12549,233.44,233.37,11.89960204]
[1731856866577,11.89960204,233.35,233.27,11.89960204]
[1731856867072,22.4981,233.36,233.31,11.89960204]
[1731856867279,17.63098298,233.49,233.21,0.09367462]
[1731856867280,23.902374,233.42,233.35,11.89960204]
[1731856868374,0.2,233.51,233.28,11.89960204]
[1731856868375,11.89960204,233.47,233.37,11.89960204]
[1731856868598,26.7812,233.48,233.39,11.89960204]
[1731856868886,0.09367462,233.47,233.39,11.89960204]
[1731856869086,26.7812,233.48,233.39,11.89960204]
[1731856869377,0.09367462,233.47,233.39,11.89960204]
[1731856869682,11.99327666,233.47,233.39,11.89960204]
[1731856870184,23.902374,233.46,233.39,11.89960204]
[1731856870364,23.902374,233.47,233.41,11.89960204]
[1731856870867,23.776884,233.47,233.41,11.89960204]
[1731856871780,23.776884,233.47,233.39,11.89960204]
[1731856872474,0.09367462,233.46,233.39,11.89960204]
[1731856872668,23.902374,233.44,233.35,11.89960204]
[1731856873067,11.89960204,233.43,233.33,11.89960204]
[1731856873661,28.186074,233.44,233.33,11.89960204]
[1731856873864,11.89960204,233.43,233.33,11.89960204]
[1731856874066,11.89960204,233.43,233.34,20.0]
[1731856874661,11.89960204,233.43,233.31,11.89960204]
[1731856874662,24.12153862,233.4,233.31,11.89960204]
[1731856874866,23.99604862,233.38,233.29,11.89960204]
[1731856876065,11.89960204,233.37,233.29,11.89960204]
[1731856876281,23.99604862,233.36,233.27,11.89960204]
[1731856876586,23.99604862,233.34,233.25,11.89960204]
[1731856876770,11.89960204,233.33,233.25,11.89960204]
[1731856876974,23.902374,233.32,233.25,11.89960204]
[1731856883995,22.8512,233.38,233.29,11.89960204]
[1731856883996,23.902374,233.36,233.29,11.89960204]
[1731856884368,27.1361,233.38,233.29,11.89960204]
[1731856884369,0.34465462,233.37,233.29,11.89960204]
[1731856886200,24.12153862,233.37,233.29,11.89960204]
[1731856886698,36.02114066,233.37,233.29,11.89960204]
[1731856887293,22.8512,233.38,233.31,11.89960204]
[1731856888184,11.99327666,233.37,233.29,11.89960204]
[1731856888506,23.902374,233.36,233.29,11.89960204]
[1731856890491,22.8512,233.38,233.31,11.89960204]
[1731856894199,22.8512,233.38,233.29,11.89960204]
[1731856894704,22.8512,233.38,233.31,11.89960204]
[1731856895788,23.902374,233.37,233.31,11.89960204]
[1731856896381,23.902374,233.37,233.31,11.79960204]
[1731856896899,23.902374,233.37,233.29,11.89960204]
[1731856897413,0.12549,233.35,233.27,11.89960204]
[1731856898086,0.21916462,233.36,233.27,11.89960204]
[1731856899681,11.89960204,233.33,233.23,11.89960204]
[1731856899882,23.902374,233.32,233.24,20.0]
[1731856900378,31.52459501,233.32,233.24,20.0]
[1731856902398,23.902374,233.32,233.24,11.90878719]
[1731856902601,23.99604862,233.29,233.19,20.09442878]
[1731856902905,23.99604862,233.29,233.21,11.90878719]
[1731856903891,0.21916462,233.27,233.21,11.90878719]
[1731856904089,0.34465462,233.21,233.16,13.3932544]
[1731856904296,0.34465462,233.21,233.14,0.4809142]
[1731856904297,11.90878719,233.17,233.14,0.4809142]
[1731856905410,0.09367462,233.15,233.14,0.4809142]
[1731856905615,35.90483581,233.15,233.14,0.4809142]
[1731856906112,36.03032581,233.15,233.14,0.4809142]
[1731856906291,24.12153862,233.15,233.14,0.4809142]
[1731856908611,0.12549,233.17,233.14,0.4809142]
[1731856908815,33.29898719,233.18,233.14,0.4809142]
[1731856909108,21.3902,233.18,233.14,0.4809142]
[1731856912510,23.99604862,233.17,233.14,0.4809142]
[1731856915420,24.027864,233.22,233.14,12.38970139]
[1731856915708,0.09367462,233.21,233.14,12.38970139]
[1731856916405,0.09367462,233.21,233.14,16.67880139]
[1731856917612,0.09367462,233.19,233.14,16.67880139]
[1731856918019,0.09367462,233.19,233.14,12.38970139]
[1731856918218,0.09367462,233.19,233.14,0.4809142]
[1731856920514,23.902374,233.16,233.14,0.4809142]
[1731856921121,0.12549,233.17,233.14,0.4809142]
[1731856922520,24.12153862,233.19,233.14,0.4809142]
[1731856924612,23.99604862,233.19,233.14,4.7701142]
[1731856925006,23.902374,233.21,233.14,16.67890139]
[1731856925191,0.12549,233.2,233.14,16.67890139]
[1731856925523,0.09367462,233.19,233.14,16.67890139]
[1731856926317,23.902374,233.21,233.16,11.90878719]
[1731856926516,23.902374,233.22,233.16,11.90878719]
[1731856928226,0.25098,233.23,233.16,11.90878719]
[1731856928523,0.09367462,233.22,233.16,11.90878719]
[1731856930727,0.12549,233.23,233.16,11.90878719]
[1731856931215,0.12549,233.23,233.18,11.90878719]
[1731856932222,4.41309,233.23,233.16,7.62786933]
[1731856932523,4.41309,233.23,233.14,0.4809142]
[1731856932524,23.87055862,233.2,233.14,0.4809142]
[1731856932716,0.09367462,233.16,233.14,0.4809142]
[1731856933607,0.12549,233.15,233.14,0.4809142]
[1731856937325,24.12153862,233.15,233.14,0.4809142]
[1731856938027,23.99604862,233.15,233.14,0.4809142]
[1731856938325,23.902374,233.15,233.14,0.4809142]
[1731856940509,28.316864,233.15,233.14,0.4809142]
[1731856941030,23.902374,233.15,233.14,0.4809142]
[1731856942024,24.12153862,233.15,233.14,0.4809142]
[1731856943904,23.99604862,233.15,233.14,0.4809142]
[1731856944104,23.902374,233.15,233.14,0.4809142]
[1731856944718,16.21328201,233.22,233.14,4.7701142]
[1731856944905,11.92538201,233.24,233.16,11.92538201]
[1731856945100,4.2873,233.25,233.16,11.92538201]
[1731856945326,0.09367462,233.24,233.16,11.92538201]
[1731856946022,4.2873,233.25,233.16,11.92538201]
[1731856946216,0.21916462,233.24,233.16,11.92538201]
[1731856946525,0.09367462,233.23,233.16,11.92538201]
[1731856947410,23.99604862,233.23,233.16,11.92538201]
[1731856947816,0.21916462,233.23,233.16,27.72498201]
[1731856950222,28.28364862,233.23,233.16,27.72498201]
[1731856951228,0.12549,233.24,233.18,11.92538201]
[1731856951425,0.09367462,233.24,233.18,11.92538201]
[1731856953538,4.2855,233.34,233.22,11.92538201]
[1731856953718,11.92538201,233.37,233.28,11.92538201]
[1731856954231,0.09367462,233.36,233.28,11.92538201]
[1731856954813,24.027864,233.35,233.28,11.92538201]
[1731856955319,0.09367462,233.34,233.28,11.92538201]
[1731856955732,11.92538201,233.39,233.3,11.92538201]
[1731856956219,18.40178201,233.41,233.32,11.92538201]
[1731856956426,22.68608201,233.41,233.32,11.92538201]
[1731856956833,0.09367462,233.4,233.32,11.92538201]
[1731856957839,0.09367462,233.38,233.32,11.92538201]
[1731856958011,0.12549,233.37,233.32,11.92538201]
[1731856959035,0.12549,233.37,233.3,11.92538201]
[1731856959841,0.12549,233.37,233.25,21.7463]
[1731856959842,0.21916462,233.34,233.25,21.7463]
[1731856960025,23.776884,233.38,233.25,21.7463]
[1731856960026,11.92538201,233.39,233.3,11.92538201]
[1731856960223,0.25098,233.38,233.32,11.92538201]
[1731856960443,0.09367462,233.37,233.32,11.92538201]
[1731856961525,0.12549,233.39,233.32,11.92538201]
[1731856961823,11.92538201,233.49,233.38,11.92538201]
[1731856962026,0.09367462,233.42,233.35,15.7446]
[1731856962420,0.09367462,233.42,233.36,11.92538201]
[1731856962832,0.09367462,233.44,233.36,11.92538201]
[1731856963140,11.92538201,233.45,233.35,15.7446]
[1731856963141,0.12549,233.45,233.4,11.92538201]
[1731856963338,11.92538201,233.49,233.4,11.92538201]
[1731856963646,4.2824,233.51,233.35,22.3256]
[1731856963647,11.92538201,233.45,233.35,22.3256]
[1731856963950,0.09367462,233.44,233.35,34.25098201]
[1731856964134,0.09367462,233.4,233.35,15.7446]
[1731856964648,23.99604862,233.4,233.35,15.7446]
[1731856968640,0.21916462,233.41,233.35,15.7446]
[1731856970039,6.70706469,233.51,233.4,11.92538201]
[1731856970219,11.92538201,233.49,233.4,11.92538201]
[1731856971131,0.09367462,233.48,233.4,11.92538201]
[1731856971445,24.12153862,233.48,233.4,11.92538201]
[1731856974826,0.09367462,233.46,233.4,11.92538201]
[1731856975025,23.99604862,233.46,233.4,11.92538201]
[1731856976638,11.92538201,233.5,233.42,11.92538201]
[1731856976839,24.027864,233.49,233.42,11.92538201]
[1731856977255,0.21916462,233.48,233.42,11.92538201]
[1731856978336,0.21916462,233.48,233.41,7.61111148]
[1731856979136,0.12549,233.46,233.4,7.61111148]
[1731856979361,23.776884,233.47,233.42,7.61111148]
[1731856979653,0.21916462,233.48,233.42,7.61111148]
[1731856980744,7.8302761,233.48,233.4,7.61111148]
[1731856980937,23.776884,233.47,233.4,7.61111148]
[1731856981453,0.21916462,233.48,233.4,7.61111148]
[1731856982551,0.21916462,233.46,233.35,15.7446]
[1731856982750,0.12549,233.45,233.38,2.23369648]
[1731856982960,0.09367462,233.44,233.38,2.23369648]
[1731856985848,0.09367462,233.45,233.35,15.7446]
[1731856986053,0.09367462,233.43,233.35,23.35571148]
[1731856986268,23.87055862,233.43,233.35,23.35571148]
[1731856986471,0.12549,233.42,233.35,23.35571148]
[1731856987271,0.12549,233.42,233.35,15.7446]
[1731856987579,0.21916462,233.43,233.35,23.35571148]
[1731856988366,0.12549,233.43,233.39,7.61111148]
[1731856988574,23.776884,233.44,233.39,7.61111148]
[1731856990958,0.12549,233.45,233.39,7.61111148]
[1731856991967,0.09367462,233.44,233.35,15.7446]
[1731856992173,0.09367462,233.44,233.29,6.581]
[1731856992174,0.09367462,233.4,233.3,16.0213]
[1731856992376,0.09367462,233.38,233.34,7.61111148]
[1731856992751,0.12549,233.39,233.36,7.61111148]
[1731856992945,0.12549,233.4,233.36,7.61111148]
[1731856993261,0.09367462,233.4,233.36,7.61111148]
[1731856994052,0.12549,233.41,233.36,7.61111148]
[1731856994772,0.12549,233.39,233.34,7.61111148]
[1731856994957,0.12549,233.39,233.3,16.0213]
[1731856995155,0.12549,233.39,233.32,7.61111148]
[1731856996773,0.09367462,233.36,233.3,23.63241148]
[1731856997277,0.12549,233.37,233.3,23.63241148]
[1731856997570,0.12549,233.37,233.33,7.61111148]
[1731856997875,23.776884,233.38,233.35,7.61111148]
[1731856999060,23.87055862,233.4,233.35,7.61111148]
[1731856999263,0.12549,233.39,233.35,7.61111148]
[1731857000378,26.0373,233.48,233.37,7.61111148]
[1731857000565,7.61111148,233.47,233.39,7.61111148]
[1731857000756,26.0373,233.48,233.39,7.61111148]
[1731857000951,21.7542,233.48,233.39,7.61111148]
[1731857001164,7.61111148,233.51,233.43,7.61111148]
[1731857001357,26.301,233.54,233.43,7.61111148]
[1731857001775,0.09367462,233.52,233.43,7.61111148]
[1731857002273,11.88985886,233.52,233.44,11.88985886]
[1731857002460,16.17205886,233.52,233.44,11.88985886]
[1731857002781,0.09367462,233.51,233.44,11.88985886]
[1731857003578,0.09367462,233.49,233.44,11.88985886]
[1731857004062,0.21916462,233.49,233.44,11.88985886]
[1731857004955,0.21916462,233.49,233.42,11.88985886]
[1731857006479,23.99604862,233.49,233.42,11.88985886]
[1731857007385,22.0191,233.54,233.44,11.88985886]
[1731857007386,11.88985886,233.54,233.44,11.88985886]
[1731857007963,0.09367462,233.53,233.44,11.88985886]
[1731857008572,24.12153862,233.53,233.44,11.88985886]
[1731857009758,0.21916462,233.51,233.42,11.88985886]
[1731857010087,23.99604862,233.51,233.42,11.88985886]
[1731857010857,23.99604862,233.49,233.42,11.88985886]
[1731857011070,23.99604862,233.49,233.4,11.88985886]
[1731857012067,11.88985886,233.52,233.44,11.88985886]
[1731857012266,0.12549,233.51,233.44,11.88985886]
[1731857012505,23.87055862,233.51,233.44,11.88985886]
[1731857013683,0.09367462,233.51,233.44,11.88985886]
[1731857016179,0.12549,233.52,233.44,11.88985886]
[1731857022394,0.12549,233.52,233.43,7.60933483]
[1731857022772,0.12549,233.52,233.4,20.0]
[1731857022981,23.776884,233.5,233.4,20.0]
[1731857023272,23.776884,233.5,233.39,15.0678]
[1731857023273,7.95398945,233.49,233.39,15.0678]
[1731857023483,0.34465462,233.47,233.39,15.0678]
[1731857023677,23.776884,233.46,233.39,15.0678]
[1731857025792,0.1,233.55,233.39,15.0678]
[1731857025987,23.902374,233.48,233.4,7.60933483]
[1731857028276,23.902374,233.48,233.39,15.0678]
[1731857038786,7.82849945,233.47,233.39,15.0678]
[1731857038991,23.902374,233.46,233.38,7.60933483]
[1731857040392,0.21916462,233.45,233.35,20.0]
[1731857040600,0.21916462,233.45,233.34,15.2238]
[1731857040601,7.60933483,233.43,233.34,15.2238]
[1731857041005,7.60933483,233.43,233.28,28.6170544]
[1731857041006,24.12153862,233.4,233.28,28.6170544]
[1731857041195,23.776884,233.38,233.31,7.60933483]
[1731857041712,4.2837,233.45,233.34,7.60933483]
[1731857041893,23.902374,233.42,233.34,7.60933483]
[1731857043611,0.12549,233.42,233.34,7.60933483]
[1731857043991,10.7069,233.5,233.29,20.0]
[1731857043992,24.12153862,233.4,233.29,20.0]
[1731857044192,24.12153862,233.4,233.31,7.60933483]
[1731857044908,24.12153862,233.4,233.28,15.2238]
[1731857044909,23.99604862,233.38,233.28,15.2238]
[1731857045108,4.283,233.48,233.36,7.60933483]
[1731857045318,7.60933483,233.46,233.36,7.60933483]
[1731857045495,7.60933483,233.44,233.36,7.60933483]
[1731857045694,0.09367462,233.43,233.36,7.60933483]
[1731857045894,0.09367462,233.43,233.28,30.43733932]
[1731857046099,0.09367462,233.41,233.34,7.60933483]
[1731857046419,0.09367462,233.39,233.34,7.60933483]
[1731857047301,0.09367462,233.39,233.32,7.60933483]
[1731857047499,0.09367462,233.37,233.27,15.4492]
[1731857047718,0.09367462,233.37,233.31,7.60933483]
[1731857049710,7.60933483,233.46,233.36,7.60933483]
[1731857049911,0.09367462,233.45,233.36,7.60933483]
[1731857050115,0.09367462,233.43,233.36,7.60933483]
[1731857050691,0.21916462,233.43,233.36,7.60933483]
[1731857050899,0.12549,233.42,233.36,7.60933483]
[1731857051715,23.87055862,233.43,233.36,7.60933483]
[1731857052014,0.12549,233.44,233.38,7.60933483]
[1731857052217,23.776884,233.45,233.28,50.11967929]
[1731857052218,0.25098,233.45,233.4,7.60933483]
[1731857052419,0.09367462,233.44,233.4,7.60933483]
[1731857052793,26.9236,233.49,233.4,7.60933483]
[1731857052996,22.6408,233.49,233.42,7.60933483]
[1731857053396,0.09367462,233.48,233.42,7.60933483]
[1731857054312,23.99604862,233.48,233.42,7.60933483]
[1731857056017,23.99604862,233.48,233.36,16.5413]
[1731857056219,0.21916462,233.46,233.4,7.60933483]
[1731857056522,0.21916462,233.46,233.36,7.60933483]
[1731857056523,0.21916462,233.44,233.36,7.60933483]
[1731857059016,0.21916462,233.44,233.36,7.60933483]
[1731857059214,23.776884,233.41,233.34,7.60933483]
[1731857062105,0.12549,233.42,233.38,7.60933483]
[1731857062312,23.776884,233.43,233.38,7.60933483]
[1731857062539,23.87055862,233.45,233.38,7.60933483]
[1731857062827,0.09367462,233.43,233.38,7.60933483]
[1731857065135,0.25098,233.45,233.4,7.60933483]
[1731857065321,0.25098,233.46,233.4,7.60933483]
[1731857065518,0.09367462,233.45,233.4,7.60933483]
[1731857066232,23.87055862,233.45,233.33,20.0]
[1731857066411,0.12549,233.44,233.37,7.60933483]
[1731857071322,0.09367462,233.43,233.37,7.60933483]
[1731857071733,7.60933483,233.47,233.29,13.3932544]
[1731857071734,22.412,233.55,233.42,20.0]
[1731857071919,30.02133483,233.6,233.51,7.60933483]
[1731857072127,22.412,233.6,233.53,7.60933483]
[1731857072716,0.09367462,233.59,233.53,7.60933483]
[1731857073730,0.12549,233.58,233.53,7.60933483]
[1731857073911,22.412,233.6,233.42,20.0]
[1731857073912,22.412,233.6,233.57,7.60933483]
[1731857074116,26.6919,233.65,233.57,7.60933483]
[1731857075219,0.09367462,233.64,233.57,7.60933483]
[1731857075733,7.60933483,233.61,233.48,16.0402]
[1731857076030,24.12153862,233.6,233.52,7.60933483]
[1731857080025,26.9501,233.71,233.59,7.60933483]
[1731857080228,26.9501,233.71,233.67,7.60933483]
[1731857080229,22.6712,233.71,233.67,7.60933483]
[1731857080536,7.60933483,233.76,233.67,7.60933483]
[1731857080922,0.09367462,233.75,233.67,7.60933483]
[1731857081113,7.60933483,233.74,233.58,15.627]
[1731857081317,7.60933483,233.72,233.59,20.0]
[1731857081641,0.21916462,233.71,233.63,7.60933483]
[1731857081839,0.21916462,233.71,233.65,7.60933483]
[1731857082047,7.60933483,233.74,233.59,20.0]
[1731857082048,0.21916462,233.73,233.59,20.0]
[1731857082342,0.21916462,233.71,233.63,11.87029227]
[1731857082846,0.09367462,233.69,233.63,11.87029227]
[1731857083142,0.21916462,233.67,233.63,11.87029227]
[1731857083643,0.21916462,233.69,233.63,11.87029227]
[1731857083829,0.09367462,233.67,233.63,11.87029227]
[1731857084034,0.21916462,233.65,233.61,11.87029227]
[1731857089822,11.87029227,233.73,233.64,11.87029227]
[1731857090039,34.54149227,233.77,233.68,11.87029227]
[1731857090245,34.54149227,233.77,233.6,6.43464112]
[1731857090246,22.6712,233.77,233.7,11.87029227]
[1731857090926,0.09367462,233.76,233.7,11.87029227]
[1731857091456,0.09367462,233.74,233.7,11.87029227]
[1731857091660,0.09367462,233.72,233.7,11.87029227]
[1731857092144,16.14749227,233.8,233.7,11.87029227]
[1731857092321,16.14749227,233.8,233.72,11.87029227]
[1731857092522,0.09367462,233.79,233.72,11.87029227]
[1731857092938,16.14749227,233.8,233.72,11.87029227]
[1731857093244,37.63449227,233.82,233.74,11.87029227]
[1731857093740,0.09367462,233.81,233.74,11.87029227]
[1731857094131,25.7642,233.82,233.74,11.87029227]
[1731857094638,24.12153862,233.81,233.74,11.87029227]
[1731857096354,3.40061408,233.86,233.76,11.87029227]
[1731857096355,4.2763,233.85,233.76,11.87029227]
[1731857096541,0.09367462,233.84,233.76,11.87029227]
[1731857096849,4.2763,233.85,233.76,11.87029227]
[1731857097734,0.09367462,233.85,233.76,11.87029227]
[1731857098040,0.09367462,233.85,233.7,6.2263]
[1731857098041,24.12153862,233.85,233.78,11.87029227]
[1731857098851,33.2379,233.9,233.8,11.87029227]
[1731857098852,22.5492,233.9,233.8,11.87029227]
[1731857099045,16.14549227,233.91,233.82,11.87029227]
[1731857099355,0.09367462,233.9,233.82,11.87029227]
[1731857100236,23.21740647,233.95,233.86,11.87029227]
[1731857100432,16.62560647,233.95,233.86,11.87029227]
[1731857100641,12.35120647,233.95,233.86,11.87029227]
[1731857100841,12.35120647,233.95,233.88,11.87029227]
[1731857100842,0.4809142,233.95,233.88,11.87029227]
[1731857101146,0.09367462,233.94,233.88,11.87029227]
[1731857101555,0.4809142,233.95,233.88,11.87029227]
[1731857101934,0.34465462,233.94,233.88,11.87029227]
[1731857102133,0.25098,233.94,233.88,11.87029227]
[1731857102453,24.027864,233.94,233.88,11.87029227]
[1731857104144,0.09367462,233.93,233.86,11.87029227]
[1731857110239,23.902374,233.94,233.89,7.57995231]
[1731857113341,0.4809142,233.95,233.93,7.57995231]
[1731857113853,0.4809142,233.95,233.94,20.0]
[1731857114055,0.4809142,233.95,233.9,6.1954]
[1731857114362,0.4809142,233.95,233.94,31.837111]
[1731857114551,0.4809142,233.95,233.94,46.925211]
[1731857115366,4.2715,234.11,233.95,20.0]
[1731857115654,4.2715,234.11,234.03,11.837111]
[1731857116658,24.027864,234.1,234.03,11.837111]
[1731857117153,11.837111,234.12,234.03,11.837111]
[1731857118156,11.837111,234.16,234.07,11.837111]
[1731857118537,0.09367462,234.15,234.07,11.837111]
[1731857118953,0.4809142,234.18,234.07,11.837111]
[1731857119154,11.837111,234.16,234.07,11.837111]
[1731857119362,0.09367462,234.15,234.07,11.837111]
[1731857119540,11.837111,234.16,234.07,11.837111]
[1731857120756,0.09367462,234.14,234.07,11.837111]
[1731857121056,0.21916462,234.12,234.05,11.837111]
[1731857121253,0.21916462,234.1,234.05,11.837111]
[1731857122067,0.21916462,234.1,234.06,11.837111]
[1731857122358,0.12549,234.1,234.06,11.837111]
[1731857122573,23.776884,234.13,234.01,15.8481]
[1731857122574,11.837111,234.17,234.08,11.837111]
[1731857123466,0.09367462,234.14,234.01,15.8481]
[1731857123666,24.12153862,234.14,234.06,11.837111]
[1731857124348,0.34465462,234.14,234.08,11.837111]
[1731857127862,0.34465462,234.14,234.06,11.837111]
[1731857128065,24.12153862,234.14,234.06,11.837111]
[1731857130770,24.12153862,234.12,234.04,11.837111]
[1731857131146,0.21916462,234.1,234.02,11.837111]
[1731857131350,24.12153862,234.1,234.04,11.837111]
[1731857131577,0.34465462,234.1,234.06,11.837111]
[1731857132759,0.12549,234.11,234.06,11.837111]
[1731857133173,0.09367462,234.1,234.06,11.837111]
[1731857133673,0.12549,234.11,234.06,11.837111]
[1731857133852,11.837111,234.15,234.06,11.837111]
[1731857134244,0.09367462,234.14,234.07,7.56807693]
[1731857134853,0.09367462,234.15,234.07,7.56807693]
[1731857135069,0.21916462,234.13,234.07,7.56807693]
[1731857136653,0.12549,234.14,234.07,7.56807693]
[1731857136961,0.12549,234.14,234.1,7.56807693]
[1731857141670,0.34465462,234.15,234.08,7.56807693]
[1731857149587,0.09367462,234.07,233.94,6.3942]
[1731857149765,7.56807693,234.05,233.95,15.4244]
[1731857149966,7.56807693,234.05,233.96,7.56807693]
[1731857150468,0.12549,234.05,233.98,7.56807693]
[1731857151486,0.12549,234.05,233.95,15.4244]
[1731857151780,0.12549,234.05,233.96,20.0]
[1731857152163,0.12549,234.05,233.94,6.3942]
[1731857152164,0.34465462,234.0,233.89,16.5885]
[1731857152369,23.902374,233.98,233.9,7.56807693]
[1731857152880,24.12153862,233.96,233.84,16.5885]
[1731857153080,23.902374,233.94,233.86,7.56807693]
[1731857153263,0.12549,233.93,233.86,7.56807693]
[1731857154867,0.12549,233.92,233.86,7.56807693]
[1731857155274,0.12549,233.92,233.81,6.68433107]
[1731857155468,23.902374,233.9,233.75,16.5885]
[1731857155677,0.09367462,233.85,233.75,16.5885]
[1731857155875,0.12549,233.82,233.77,6.68546013]
[1731857156169,23.902374,233.82,233.74,7.56807693]
[1731857156580,0.12549,233.86,233.78,7.56807693]
[1731857156888,0.25098,233.84,233.69,41.98722148]
[1731857157075,0.25098,233.84,233.76,7.56807693]
[1731857158283,0.25098,233.84,233.77,11.85599122]
[1731857162393,24.027864,233.82,233.73,11.85599122]
[1731857162582,24.027864,233.82,233.75,11.85599122]
[1731857163183,0.12549,233.8,233.73,11.85599122]
[1731857163387,24.027864,233.8,233.75,11.85599122]
[1731857163785,0.25098,233.8,233.77,11.85599122]
[1731857164273,0.25098,233.8,233.75,11.85599122]
[1731857165091,0.09367462,233.79,233.73,11.85599122]
[1731857165275,0.09367462,233.79,233.75,11.85599122]
[1731857165889,0.09367462,233.79,233.73,11.85599122]
[1731857166690,0.09367462,233.79,233.75,11.85599122]
[1731857167403,0.09367462,233.79,233.69,16.5885]
[1731857167404,0.09367462,233.79,233.71,11.85599122]
[1731857167701,24.027864,233.74,233.65,11.85599122]
[1731857167873,24.027864,233.72,233.65,11.85599122]
[1731857168273,24.027864,233.72,233.63,11.85599122]
[1731857169496,24.027864,233.72,233.65,11.85599122]
[1731857169685,0.25098,233.72,233.65,11.85599122]